bitfinex-derivatives/quotes_SOLF0:USTF0_20250903
["timestamp","ask_amount","ask_price","bid_price","bid_amount"]
[1756914479834,7.87,211.65,211.56,7.66]
[1756914481033,3.41037547,211.63,211.56,7.66]
[1756914481242,11.28037547,211.63,211.56,7.66]
[1756914482640,7.87,211.59,211.52,7.66]
[1756914483540,7.87,211.59,211.51,317.36]
[1756914483740,7.87,211.59,211.51,325.02]
[1756914492349,7.87,211.59,211.52,7.24]
[1756914493453,7.87,211.59,211.52,123.54]
[1756914493855,7.87,211.59,211.52,7.24]
[1756914494056,7.87,211.59,211.52,123.54]
[1756914494859,7.87,211.59,211.52,7.24]
[1756914495061,7.87,211.59,211.52,123.54]
[1756914498448,7.87,211.59,211.52,7.24]
[1756914499254,3.41037547,211.54,211.47,7.24]
[1756914499455,3.41037547,211.54,211.48,7.24]
[1756914501056,11.19037547,211.54,211.48,7.24]
[1756914501557,3.41037547,211.51,211.48,7.24]
[1756914501757,3.41037547,211.51,211.4,4.2561]
[1756914502061,3.41037547,211.45,211.39,7.24]
[1756914502554,7.78,211.45,211.39,7.24]
[1756914502755,3.41037547,211.44,211.35,7.24]
[1756914502965,3.41037547,211.41,211.35,7.24]
[1756914503461,11.19037547,211.38,211.35,7.24]
[1756914503662,3.41037547,211.38,211.3,55.32]
[1756914503865,3.41037547,211.38,211.3,62.56]
[1756914504157,3.41037547,211.38,211.3,7.24]
[1756914504362,3.41037547,211.38,211.3,123.52]
[1756914504661,3.41037547,211.37,211.3,123.52]
[1756914505160,7.78,211.39,211.3,7.24]
[1756914505350,3.41037547,211.36,211.3,123.54]
[1756914506861,3.41037547,211.36,211.3,7.24]
[1756914513862,3.41037547,211.33,211.22,7.24]
[1756914514169,7.78,211.32,211.24,7.24]
[1756914514959,3.41037547,211.34,211.24,7.24]
[1756914515465,3.41037547,211.34,211.24,123.6]
[1756914515665,3.41037547,211.34,211.25,7.24]
[1756914516160,7.78,211.35,211.25,7.24]
[1756914516566,7.78,211.35,211.27,7.24]
[1756914519868,3.41037547,211.44,211.27,7.24]
[1756914520063,3.41037547,211.41,211.27,7.24]
[1756914520273,7.78,211.4,211.27,7.24]
[1756914520470,7.78,211.4,211.28,7.24]
[1756914522062,3.41037547,211.38,211.28,123.62]
[1756914522265,7.46,211.37,211.28,123.62]
[1756914522667,7.46,211.37,211.28,7.24]
[1756914525866,10.87037547,211.4,211.28,7.24]
[1756914526573,7.46,211.4,211.28,7.24]
[1756914529577,7.46,211.4,211.3,3.41037547]
[1756914529776,7.46,211.4,211.31,7.63]
[1756914530175,3.41037547,211.38,211.31,7.63]
[1756914530577,7.46,211.37,211.31,7.63]
[1756914533680,2.18887385,211.36,211.3,7.63]
[1756914535780,7.46,211.4,211.3,7.63]
[1756914536079,7.46,211.4,211.26,67.32]
[1756914536080,9.64887385,211.4,211.33,7.63]
[1756914536279,7.46,211.46,211.33,7.63]
[1756914536479,2.18887385,211.4,211.33,7.63]
[1756914537681,7.46,211.41,211.33,7.63]
[1756914537888,2.18887385,211.4,211.33,7.63]
[1756914538184,7.46,211.41,211.33,7.63]
[1756914538382,2.18887385,211.4,211.33,7.63]
[1756914539089,2.18887385,211.4,211.33,9.81887385]
[1756914539482,7.46,211.41,211.33,9.81887385]
[1756914539684,9.64887385,211.41,211.33,9.81887385]
[1756914539887,9.64887385,211.41,211.34,7.63]
[1756914540585,7.46,211.41,211.34,7.63]
[1756914540787,2.18887385,211.45,211.38,7.63]
[1756914541091,323.31179913,211.52,211.31,2.18887385]
[1756914541092,2.18887385,211.39,211.31,2.18887385]
[1756914541289,2.18887385,211.39,211.32,7.63]
[1756914542679,7.46,211.38,211.32,7.63]
[1756914542991,2.18887385,211.36,211.32,7.63]
[1756914543285,7.46,211.35,211.32,7.63]
[1756914543591,2.18887385,211.34,211.28,7.63]
[1756914544789,9.64887385,211.36,211.28,7.63]
[1756914545189,9.64887385,211.36,211.29,2.18887385]
[1756914545390,9.64887385,211.36,211.3,7.63]
[1756914545391,7.46,211.36,211.3,7.63]
[1756914545686,2.18887385,211.35,211.3,7.63]
[1756914545885,7.46,211.34,211.28,2.18887385]
[1756914546085,2.18887385,211.35,211.29,7.63]
[1756914546285,2.18887385,211.37,211.29,7.63]
[1756914546994,2.18887385,211.35,211.29,7.63]
[1756914547287,9.64887385,211.35,211.29,7.63]
[1756914547591,2.18887385,211.37,211.29,7.63]
[1756914548084,2.18887385,211.37,211.3,2.18887385]
[1756914548286,2.18887385,211.37,211.31,7.63]
[1756914548885,2.18887385,211.38,211.31,7.63]
[1756914549087,7.46,211.39,211.31,7.63]
[1756914549289,2.18887385,211.38,211.31,7.63]
[1756914552196,9.64887385,211.39,211.33,7.9]
[1756914553190,7.83,211.36,211.33,7.9]
[1756914553395,2.18887385,211.37,211.29,7.9]
[1756914553396,2.18887385,211.35,211.29,7.9]
[1756914557715,10.01887385,211.35,211.29,7.9]
[1756914562104,7.83,211.35,211.29,7.9]
[1756914563411,2.18887385,211.34,211.27,6.12508275]
[1756914563619,2.18887385,211.34,211.28,7.9]
[1756914567213,7.83,211.35,211.28,7.9]
[1756914567420,2.18887385,211.34,211.28,7.9]
[1756914568115,10.01887385,211.34,211.28,7.9]
[1756914570617,10.01887385,211.34,211.28,10.08887385]
[1756914571421,7.83,211.34,211.28,14.02508275]
[1756914571617,7.83,211.34,211.28,10.08887385]
[1756914575424,7.83,211.33,211.27,3.9362089]
[1756914575626,2.18887385,211.32,211.26,7.9]
[1756914576324,3.62919545,211.31,211.26,7.9]
[1756914576531,7.83,211.29,211.26,7.9]
[1756914576923,7.83,211.29,211.23,6.12508275]
[1756914577128,2.18887385,211.3,211.24,7.9]
[1756914577328,3.63782123,211.29,211.23,6.12508275]
[1756914577532,2.18887385,211.3,211.24,7.9]
[1756914577826,2.18887385,211.3,211.23,6.12508275]
[1756914577827,3.63768076,211.29,211.23,6.12508275]
[1756914578028,2.18887385,211.3,211.24,7.9]
[1756914578229,3.63768261,211.29,211.23,2.18887385]
[1756914578429,10.01887385,211.3,211.23,10.08887385]
[1756914578631,3.63688457,211.29,211.23,10.08887385]
[1756914578929,10.01887385,211.3,211.23,7.9]
[1756914579131,3.63658721,211.29,211.23,7.9]
[1756914579425,10.01887385,211.3,211.23,7.9]
[1756914579625,2.18887385,211.28,211.23,7.9]
[1756914579826,2.18887385,211.28,211.22,7.9]
[1756914583837,10.01887385,211.29,211.22,7.9]
[1756914585134,2.18887385,211.29,211.24,7.53]
[1756914586038,7.7,211.37,211.24,7.53]
[1756914586240,2.18887385,211.31,211.24,7.53]
[1756914586535,3.63344936,211.3,211.24,7.53]
[1756914588547,2.18887385,211.34,211.28,7.53]
[1756914588742,3.63453555,211.33,211.28,2.18887385]
[1756914588938,9.88887385,211.36,211.28,2.18887385]
[1756914589237,9.88887385,211.36,211.29,7.53]
[1756914589238,3.63490141,211.35,211.29,7.53]
[1756914589436,3.63490141,211.34,211.28,2.18887385]
[1756914589635,7.7,211.35,211.29,7.53]
[1756914589836,3.6350191,211.34,211.28,2.18887385]
[1756914590037,7.7,211.35,211.29,7.53]
[1756914590237,3.6350191,211.34,211.28,2.18887385]
[1756914590437,7.7,211.35,211.29,7.53]
[1756914590641,3.63514159,211.34,211.29,7.53]
[1756914590841,7.7,211.35,211.29,7.53]
[1756914591038,3.63514159,211.34,211.29,7.53]
[1756914591240,7.7,211.35,211.29,7.53]
[1756914591439,3.63526756,211.34,211.29,7.53]
[1756914591640,7.7,211.35,211.29,7.53]
[1756914591842,3.63526756,211.34,211.28,2.18887385]
[1756914592042,7.7,211.35,211.29,7.53]
[1756914592244,3.63526756,211.34,211.29,7.53]
[1756914592442,7.7,211.35,211.29,7.53]
[1756914592641,3.6353986,211.34,211.29,7.53]
[1756914592845,7.7,211.35,211.29,7.53]
[1756914593039,3.63553639,211.34,211.29,7.53]
[1756914593239,7.7,211.35,211.29,7.53]
[1756914593440,3.63553412,211.34,211.27,116.36]
[1756914593740,7.7,211.35,211.28,7.53]
[1756914594037,3.6346664,211.34,211.28,7.53]
[1756914594234,7.7,211.35,211.28,7.53]
[1756914594434,3.63480651,211.34,211.28,7.53]
[1756914594641,7.7,211.35,211.28,7.53]
[1756914594947,3.63480651,211.34,211.28,7.53]
[1756914595138,7.7,211.35,211.28,7.53]
[1756914595343,3.63494891,211.34,211.28,7.53]
[1756914595544,7.7,211.41,211.28,7.53]
[1756914595740,7.7,211.39,211.29,7.53]
[1756914595942,3.6347989,211.38,211.29,7.53]
[1756914596646,11.3347989,211.37,211.29,7.53]
[1756914596848,3.6347989,211.36,211.29,7.53]
[1756914600745,7.7,211.35,211.29,7.53]
[1756914600947,7.7,211.33,211.3,7.53]
[1756914601146,3.6347989,211.32,211.27,7.53]
[1756914601344,3.66838601,211.31,211.27,7.53]
[1756914601551,7.7,211.36,211.27,7.53]
[1756914601742,7.29249758,211.35,211.27,7.53]
[1756914601948,7.29249758,211.34,211.27,7.53]
[1756914602147,7.29249758,211.33,211.27,7.53]
[1756914602343,3.66868568,211.32,211.27,7.53]
[1756914602549,7.7,211.34,211.27,7.53]
[1756914602746,7.29287983,211.33,211.27,7.53]
[1756914602948,3.66887798,211.32,211.27,7.53]
[1756914603148,7.7,211.34,211.27,7.53]
[1756914603354,7.29316466,211.33,211.27,7.53]
[1756914603548,3.66902127,211.32,211.27,7.53]
[1756914603749,7.7,211.34,211.26,3.42048555]
[1756914603948,7.29316466,211.33,211.27,7.53]
[1756914604149,3.66902127,211.32,211.26,3.42048555]
[1756914604345,7.7,211.34,211.27,7.53]
[1756914604649,7.7,211.32,211.27,7.53]
[1756914604953,7.7,211.3,211.24,7.53]
[1756914605149,3.67000965,211.29,211.23,3.9362089]
[1756914605345,7.7,211.35,211.24,7.53]
[1756914605548,7.7,211.33,211.24,7.53]
[1756914605749,7.28107432,211.32,211.24,7.53]
[1756914605951,14.98107432,211.31,211.24,7.53]
[1756914606151,3.66295775,211.3,211.24,7.53]
[1756914606455,3.66315271,211.29,211.23,7.53]
[1756914606656,7.7,211.31,211.23,7.53]
[1756914606855,3.6631502,211.3,211.23,7.53]
[1756914607156,7.7,211.28,211.21,7.53]
[1756914607351,3.6631502,211.27,211.21,7.53]
[1756914607558,3.6631502,211.26,211.2,11.4662089]
[1756914607753,7.7,211.27,211.2,11.4662089]
[1756914607962,3.66228369,211.26,211.2,3.9362089]
[1756914608154,7.7,211.27,211.21,7.53]
[1756914608350,3.66186872,211.26,211.2,3.9362089]
[1756914608559,7.7,211.27,211.21,7.53]
[1756914609356,7.26415532,211.26,211.2,7.53]
[1756914609556,3.65560571,211.25,211.2,7.53]
[1756914609758,3.65560571,211.24,211.2,7.53]
[1756914609954,7.7,211.27,211.21,7.53]
[1756914610257,3.6568261,211.26,211.21,7.53]
[1756914610458,3.6568261,211.25,211.2,116.32]
[1756914610657,7.7,211.27,211.21,7.53]
[1756914610955,7.26733675,211.26,211.2,123.85]
[1756914611155,3.65721555,211.25,211.21,7.53]
[1756914611460,3.65721555,211.24,211.21,7.53]
[1756914611654,3.42048555,211.29,211.19,7.54]
[1756914611855,18.38496609,211.28,211.19,7.54]
[1756914612054,7.7,211.26,211.19,7.54]
[1756914612256,7.26448054,211.25,211.19,7.54]
[1756914612460,3.65578145,211.24,211.18,7.54]
[1756914612656,3.65578145,211.23,211.17,325.6]
[1756914612856,3.42048555,211.28,211.17,325.6]
[1756914612857,7.7,211.21,211.17,325.6]
[1756914613060,3.65578145,211.2,211.18,7.54]
[1756914613360,7.7,211.27,211.18,7.54]
[1756914613560,7.7,211.25,211.18,7.54]
[1756914613761,7.25853679,211.24,211.18,7.54]
[1756914613958,7.25853679,211.23,211.17,318.06]
[1756914614260,3.65282131,211.22,211.18,7.54]
[1756914614461,19.99449673,211.34,211.18,123.88]
[1756914614462,3.42048555,211.28,211.18,123.88]
[1756914614659,7.7,211.26,211.18,123.88]
[1756914614858,7.25619064,211.25,211.18,123.88]
[1756914615058,7.25619064,211.24,211.18,123.88]
[1756914615259,11.35180743,211.23,211.18,116.34]
[1756914615460,3.65180743,211.22,211.18,7.54]
[1756914615763,3.65180743,211.22,211.19,7.54]
[1756914616157,11.35180743,211.22,211.19,7.54]
[1756914616460,7.7,211.27,211.18,116.34]
[1756914616663,7.7,211.25,211.18,116.34]
[1756914616861,7.25571896,211.24,211.18,116.34]
[1756914617061,3.65140298,211.23,211.18,116.34]
[1756914617263,7.7,211.26,211.18,123.88]
[1756914617462,7.25587796,211.25,211.18,123.88]
[1756914617658,7.25587796,211.24,211.18,123.88]
[1756914617860,11.35142908,211.23,211.18,116.34]
[1756914618055,3.65142908,211.22,211.18,116.34]
[1756914618263,7.7,211.23,211.19,7.54]
[1756914618863,7.7,211.23,211.18,116.34]
[1756914619763,7.7,211.23,211.19,7.54]
[1756914620866,7.7,211.23,211.18,116.34]
[1756914621055,7.7,211.23,211.19,7.54]
[1756914621563,7.7,211.34,211.19,7.54]
[1756914621766,7.7,211.29,211.19,7.54]
[1756914621963,7.25876077,211.28,211.19,7.54]
[1756914622264,14.95876077,211.27,211.19,7.54]
[1756914622463,3.6529149,211.26,211.19,7.54]
[1756914622663,3.6529149,211.25,211.19,7.54]
[1756914622864,7.7,211.27,211.19,7.54]
[1756914623061,3.65230238,211.26,211.19,7.54]
[1756914623262,3.65230238,211.25,211.2,116.34]
[1756914623463,7.7,211.29,211.2,123.88]
[1756914623659,7.25661019,211.28,211.2,123.88]
[1756914623865,14.95661019,211.27,211.2,123.88]
[1756914624064,7.25661019,211.26,211.2,123.88]
[1756914624260,7.7,211.27,211.2,123.88]
[1756914624261,3.65184049,211.25,211.2,116.34]
[1756914624461,7.7,211.27,211.2,123.88]
[1756914624663,7.25608565,211.26,211.2,123.88]
[1756914624866,3.6515765,211.25,211.2,116.34]
[1756914625066,7.7,211.27,211.21,7.54]
[1756914625267,7.7,211.25,211.21,116.34]
[1756914625566,7.7,211.23,211.21,116.34]
[1756914626061,7.7,211.33,211.2,116.34]
[1756914626266,3.42048555,211.28,211.2,116.34]
[1756914626466,7.7,211.26,211.2,116.34]
[1756914626664,3.64285205,211.25,211.2,116.34]
[1756914626964,7.7,211.23,211.2,123.88]
[1756914628063,7.7,211.27,211.2,123.88]
[1756914628268,3.64304437,211.26,211.2,123.88]
[1756914628470,7.7,211.24,211.21,7.54]
[1756914629274,11.12048555,211.28,211.21,7.54]
[1756914629473,7.7,211.26,211.21,7.54]
[1756914629770,7.7,211.24,211.21,7.54]
[1756914629965,3.42048555,211.28,211.19,116.34]
[1756914630170,7.7,211.26,211.19,116.34]
[1756914630366,7.24506842,211.25,211.19,116.34]
[1756914630567,7.7,211.23,211.2,7.54]
[1756914631064,3.42048555,211.28,211.19,116.34]
[1756914631380,7.7,211.26,211.19,116.34]
[1756914631569,7.20549096,211.25,211.19,116.34]
[1756914631770,11.30593721,211.24,211.2,7.54]
[1756914632066,7.7,211.24,211.19,116.34]
[1756914632671,3.42048555,211.29,211.2,7.54]
[1756914632871,7.7,211.27,211.2,7.54]
[1756914633072,7.20655345,211.26,211.2,7.54]
[1756914633367,3.60646217,211.25,211.2,7.54]
[1756914633569,7.7,211.27,211.2,7.54]
[1756914633769,3.60038931,211.26,211.2,7.54]
[1756914633970,3.60675703,211.26,211.2,7.54]
[1756914634172,11.30675703,211.25,211.2,7.54]
[1756914634471,7.7,211.25,211.2,7.54]
[1756914634671,7.7,211.25,211.19,116.34]
[1756914634974,7.7,211.25,211.2,7.54]
[1756914635274,11.12048555,211.29,211.2,7.54]
[1756914635474,7.20693792,211.28,211.2,7.54]
[1756914635675,3.60664905,211.27,211.2,7.54]
[1756914635877,7.7,211.29,211.2,7.54]
[1756914636066,7.20777501,211.28,211.2,7.54]
[1756914636270,3.60705788,211.27,211.2,7.54]
[1756914636475,3.60712573,211.26,211.2,7.54]
[1756914636774,7.7,211.29,211.2,7.54]
[1756914636969,7.20701672,211.28,211.2,7.54]
[1756914637172,3.6066829,211.27,211.2,7.54]
[1756914637475,3.6066829,211.26,211.2,7.54]
[1756914637679,7.7,211.29,211.2,7.54]
[1756914637875,7.20820517,211.28,211.2,7.54]
[1756914638076,7.20820517,211.27,211.2,7.54]
[1756914638375,3.60709154,211.26,211.2,7.54]
[1756914638575,7.7,211.29,211.2,7.54]
[1756914638776,7.7,211.35,211.25,7.54]
[1756914639070,7.21124466,211.34,211.26,116.32]
[1756914639271,7.21124466,211.34,211.25,10.96048555]
[1756914639272,7.21124466,211.33,211.27,7.54]
[1756914639472,7.21124466,211.32,211.29,7.54]
[1756914639670,3.60857254,211.31,211.29,7.54]
[1756914639872,7.21073448,211.3,211.24,116.32]
[1756914640070,3.60857254,211.29,211.24,116.32]
[1756914640270,3.60857254,211.28,211.25,7.54]
[1756914640469,7.7,211.29,211.24,116.32]
[1756914640670,3.60886677,211.28,211.25,7.54]
[1756914640878,7.7,211.29,211.25,7.54]
[1756914641081,3.60886677,211.28,211.24,116.38]
[1756914641375,7.7,211.32,211.24,123.92]
[1756914641576,7.21402223,211.31,211.24,123.92]
[1756914641776,7.21402223,211.3,211.25,7.63]
[1756914641981,3.60998576,211.29,211.25,7.63]
[1756914642170,3.60998576,211.28,211.24,116.38]
[1756914642477,7.7,211.32,211.25,7.63]
[1756914642679,7.21544698,211.31,211.25,7.63]
[1756914642878,7.21544698,211.3,211.24,116.38]
[1756914643078,7.21544698,211.29,211.24,116.38]
[1756914643275,3.61069704,211.28,211.25,7.63]
[1756914643573,7.7,211.32,211.25,7.63]
[1756914643780,7.21601479,211.31,211.25,7.63]
[1756914643978,7.7,211.32,211.24,116.38]
[1756914643979,7.21601479,211.3,211.24,116.38]
[1756914644179,7.7,211.32,211.24,116.38]
[1756914644180,7.21785272,211.29,211.24,116.38]
[1756914644379,3.6109818,211.28,211.24,116.38]
[1756914644580,7.7,211.32,211.25,7.63]
[1756914644886,7.21993872,211.31,211.25,7.63]
[1756914645177,7.82,211.29,211.25,123.99]
[1756914645378,7.21993187,211.28,211.25,123.99]
[1756914645575,3.61293759,211.27,211.25,123.99]
[1756914645778,7.82,211.29,211.25,123.99]
[1756914645974,7.21915956,211.28,211.25,123.99]
[1756914646169,3.61255656,211.27,211.26,7.63]
[1756914646369,7.82,211.37,211.26,7.63]
[1756914646575,7.22079278,211.36,211.27,7.63]
[1756914646773,3.61337074,211.35,211.27,7.63]
[1756914646973,3.61337074,211.34,211.27,7.63]
[1756914647177,3.61337074,211.33,211.27,7.63]
[1756914647375,3.61337074,211.32,211.29,7.63]
[1756914647582,7.82,211.37,211.29,7.63]
[1756914650185,7.82,211.37,211.29,123.95]
[1756914650686,7.82,211.37,211.29,7.63]
[1756914650991,7.82,211.37,211.29,36.81]
[1756914652080,7.82,211.37,211.3,7.63]
[1756914652679,7.82,211.41,211.3,7.63]
[1756914653589,10.00811425,211.41,211.33,2.18811425]
[1756914653889,10.00811425,211.41,211.33,9.81811425]
[1756914654287,7.82,211.41,211.33,9.81811425]
[1756914654485,10.00811425,211.41,211.33,9.81811425]
[1756914655386,2.18811425,211.4,211.33,9.81811425]
[1756914656085,7.82,211.39,211.33,9.81811425]
[1756914656890,10.00811425,211.38,211.29,7.63]
[1756914657192,2.18811425,211.36,211.29,9.81811425]
[1756914657691,7.82,211.35,211.29,7.63]
[1756914657983,2.18811425,211.34,211.27,2.18811425]
[1756914658188,7.82,211.33,211.27,2.18811425]
[1756914658689,7.82,211.33,211.27,9.81811425]
[1756914662886,2.18811425,211.36,211.3,7.63]
[1756914663288,7.82,211.37,211.3,7.63]
[1756914663592,10.00811425,211.37,211.3,7.63]
[1756914666797,7.82,211.37,211.3,7.63]
[1756914666999,2.18811425,211.36,211.3,7.63]
[1756914672205,7.82,211.37,211.3,7.63]
[1756914672405,2.18811425,211.36,211.3,7.63]
[1756914673307,7.4,211.44,211.35,7.46]
[1756914673505,2.18811425,211.43,211.35,7.46]
[1756914673703,9.58811425,211.4,211.33,7.46]
[1756914674001,2.18811425,211.38,211.33,7.46]
[1756914674205,7.4,211.37,211.33,7.46]
[1756914674601,2.18811425,211.37,211.33,7.46]
[1756914674802,7.4,211.36,211.33,7.46]
[1756914675205,7.4,211.36,211.3,7.46]
[1756914676903,2.18811425,211.37,211.3,7.46]
[1756914677107,9.58811425,211.39,211.31,2.18811425]
[1756914677402,9.58811425,211.39,211.32,7.46]
[1756914679603,7.4,211.39,211.32,7.46]
[1756914679805,9.58811425,211.39,211.32,7.46]
[1756914684410,7.4,211.39,211.33,2.18811425]
[1756914684712,7.4,211.39,211.33,9.64811425]
[1756914684907,12.67179913,211.43,211.37,2.18811425]
[1756914685108,14.85991338,211.46,211.39,2.18811425]
[1756914685308,14.85991338,211.46,211.39,9.64811425]
[1756914685611,9.58811425,211.46,211.39,9.64811425]
[1756914688214,7.4,211.45,211.34,7.46]
[1756914688415,318.12,211.5,211.35,2.18811425]
[1756914688416,2.18811425,211.42,211.35,2.18811425]
[1756914688610,9.58811425,211.42,211.35,2.18811425]
[1756914688815,7.4,211.42,211.35,2.18811425]
[1756914689114,9.58811425,211.42,211.35,2.18811425]
[1756914689915,9.58811425,211.42,211.36,7.46]
[1756914690416,2.18811425,211.45,211.38,7.46]
[1756914692317,7.4,211.46,211.38,7.46]
[1756914692523,9.58811425,211.46,211.39,2.18811425]
[1756914692722,2.18811425,211.49,211.42,7.46]
[1756914693122,2.18811425,211.47,211.42,7.46]
[1756914693321,7.4,211.46,211.42,7.46]
[1756914694422,2.18811425,211.45,211.38,7.46]
[1756914694623,15.03327892,211.56,211.38,7.46]
[1756914694624,7.4,211.42,211.38,7.46]
[1756914695319,2.18811425,211.41,211.34,111.04173557]
[1756914695519,2.18811425,211.4,211.34,111.04173557]
[1756914696530,2.18811425,211.4,211.34,7.46]
[1756914696822,9.58811425,211.4,211.34,7.46]
[1756914698023,9.58811425,211.38,211.34,7.46]
[1756914698624,9.58811425,211.38,211.32,7.46]
[1756914701129,2.18811425,211.36,211.32,7.46]
[1756914701429,2.18811425,211.37,211.3,7.46]
[1756914702225,7.4,211.38,211.3,7.46]
[1756914702433,9.58811425,211.38,211.31,2.18811425]
[1756914703631,9.58811425,211.38,211.3,9.64811425]
[1756914703932,2.18811425,211.36,211.3,7.46]
[1756914704930,7.4,211.38,211.3,7.46]
[1756914704931,2.18811425,211.37,211.3,7.46]
[1756914707028,7.83,211.44,211.33,2.18811425]
[1756914707234,2.18811425,211.4,211.34,7.55]
[1756914707825,2.18811425,211.38,211.31,2.18811425]
[1756914708133,2.18811425,211.36,211.3,31.59]
[1756914710831,10.01811425,211.37,211.3,31.59]
[1756914711029,7.83,211.44,211.32,7.55]
[1756914711233,7.83,211.44,211.34,2.18811425]
[1756914711430,2.18811425,211.41,211.35,7.55]
[1756914711934,7.83,211.44,211.35,7.55]
[1756914712134,2.18811425,211.41,211.35,7.55]
[1756914715438,7.83,211.42,211.35,7.55]
[1756914717735,7.83,211.39,211.3,7.55]
[1756914717935,7.83,211.39,211.3,36.73]
[1756914718537,5.27179913,211.44,211.3,7.55]
[1756914718538,7.83,211.36,211.3,7.55]
[1756914718738,7.83,211.36,211.24,3.97278288]
[1756914718739,7.83,211.36,211.26,56.74]
[1756914718939,7.83,211.36,211.27,7.55]
[1756914721140,7.83,211.36,211.28,7.55]
[1756914721640,7.83,211.39,211.28,7.55]
[1756914722135,3.41898376,211.37,211.28,7.55]
[1756914722340,7.83,211.36,211.28,7.55]
[1756914724834,7.83,211.36,211.24,7.55]
[1756914724835,11.24898376,211.36,211.24,7.55]
[1756914725838,7.83,211.36,211.24,3.41898376]
[1756914726042,7.83,211.36,211.25,7.55]
[1756914727040,7.83,211.36,211.25,107.28]
[1756914727342,7.83,211.36,211.26,7.55]
[1756914730143,7.83,211.32,211.26,7.55]
[1756914737450,3.41898376,211.36,211.23,123.69]
[1756914737649,7.44,211.35,211.23,123.69]
[1756914737948,7.44,211.35,211.23,7.43]
[1756914738252,7.44,211.32,211.23,7.43]
[1756914739350,10.85898376,211.32,211.23,7.43]
[1756914740947,7.44,211.32,211.23,7.43]
[1756914743050,3.41898376,211.36,211.23,7.43]
[1756914743953,7.44,211.37,211.25,7.43]
[1756914748655,7.44,211.37,211.26,7.43]
[1756914754666,3.41898376,211.35,211.26,7.43]
[1756914754864,7.44,211.34,211.26,7.43]
[1756914756463,7.44,211.31,211.19,7.43]
[1756914756660,7.44,211.31,211.18,0.82389289]
[1756914756661,7.44,211.31,211.21,7.43]
[1756914759064,3.41898376,211.29,211.21,7.43]
[1756914759264,7.44,211.28,211.21,7.43]
[1756914759466,7.44,211.28,211.15,318.1]
[1756914759669,3.41898376,211.26,211.16,7.43]
[1756914759870,7.44,211.25,211.16,7.43]
[1756914769565,7.44,211.25,211.16,123.71]
[1756914769771,7.44,211.25,211.17,7.48]
[1756914770575,10.85898376,211.25,211.17,7.48]
[1756914772876,3.41898376,211.25,211.15,318.1]
[1756914773177,7.56,211.21,211.14,7.48]
[1756914773872,3.41898376,211.19,211.09,7.48]
[1756914774072,7.56,211.18,211.1,116.26]
[1756914774474,7.56,211.18,211.1,116.28]
[1756914775380,7.56,211.18,211.11,7.48]
[1756914777477,9.75286524,211.18,211.11,7.48]
[1756914781380,9.75286524,211.18,211.11,9.67286524]
[1756914783283,7.56,211.18,211.11,9.67286524]
[1756914783481,7.56,211.27,211.12,7.48]
[1756914783683,2.19286524,211.19,211.12,7.48]